fUST/lending_fUST_20250302
["ID","MTS","AMOUNT","RATE_DAILY","PERIOD"]
[355123003,1740925834138,-500.71,0.00021917,2]
[355123004,1740925834148,-500.0,0.00021917,2]
[355123005,1740925834159,-488.21487196,0.00021917,2]
[355123006,1740925834169,-500.0,0.00021917,2]
[355123007,1740925834179,-500.0,0.00021917,2]
[355123008,1740925834189,-500.0,0.00021917,2]
[355123009,1740925834199,-576.16,0.00021917,2]
[355123010,1740925834209,-500.0,0.00021917,2]
[355123011,1740925834219,-500.0,0.00021917,2]
[355123012,1740925834229,-500.0,0.00021917,2]
[355123013,1740925834239,-500.0,0.00021917,2]
[355123014,1740925834249,-500.0,0.00021917,2]
[355123015,1740925834260,-500.0,0.00021917,2]
[355123016,1740925834270,-500.0,0.00021917,2]
[355123017,1740925834280,-500.0,0.00021917,2]
[355123018,1740925834290,-500.0,0.00021917,2]
[355123019,1740925834300,-500.0,0.00021917,2]
[355123020,1740925834309,-500.0,0.00021917,2]
[355123021,1740925834319,-500.0,0.00021917,2]
[355123022,1740925834329,-500.0,0.00021917,2]
[355123023,1740925834338,-500.0,0.00021917,2]
[355123024,1740925834348,-500.0,0.00021917,2]
[355123025,1740925834358,-500.0,0.00021917,2]
[355123026,1740925834368,-500.0,0.00021917,2]
[355123027,1740925834378,-527.36,0.00021917,2]
[355123028,1740925834388,-448.09,0.00021917,2]
[355123029,1740925834398,-500.0,0.00021917,2]
[355123030,1740925834408,-500.0,0.00021917,2]
[355123031,1740925834417,-500.0,0.00021917,2]
[355123032,1740925834427,-500.0,0.00021917,2]
[355123033,1740925834437,-500.0,0.00021917,2]
[355123034,1740925834448,-500.0,0.00021917,2]
[355123035,1740925834458,-500.0,0.00021917,2]
[355123036,1740925834468,-500.0,0.00021917,2]
[355123037,1740925834478,-500.0,0.00021917,2]
[355123038,1740925834487,-500.0,0.00021917,2]
[355123039,1740925834497,-500.0,0.00021917,2]
[355123040,1740925834507,-500.0,0.00021917,2]
[355123041,1740925834518,-500.0,0.00021917,2]
[355123042,1740925834528,-500.0,0.00021917,2]
[355123043,1740925834537,-1284.04,0.00021917,2]
[355123044,1740925834547,-529.28,0.00021917,2]
[355123045,1740925834556,-500.0,0.00021917,2]
[355123046,1740925834566,-500.0,0.00021917,2]
[355123047,1740925834576,-500.0,0.00021917,2]
[355123048,1740925834587,-500.0,0.00021917,2]
[355123049,1740925834608,-607.22,0.00021917,2]
[355123050,1740925834620,-500.0,0.00021917,2]
[355123051,1740925834630,-500.0,0.00021917,2]
[355123052,1740925834644,-500.0,0.00021917,2]
[355123053,1740925834655,-500.0,0.00021917,2]
[355123054,1740925834665,-515.7,0.00021917,2]
[355123055,1740925834676,-500.0,0.00021917,2]
[355123056,1740925834687,-500.0,0.00021917,2]
[355123057,1740925834698,-500.0,0.00021917,2]
[355123058,1740925834709,-514.43,0.00021917,2]
[355123059,1740925834723,-261.99672983,0.00021917,2]
[355123060,1740925834733,-500.0,0.00021917,2]
[355123061,1740925834743,-500.0,0.00021917,2]
[355123062,1740925834753,-500.0,0.00021917,2]
[355123063,1740925834766,-500.0,0.00021917,2]
[355123064,1740925834777,-500.0,0.00021917,2]
[355123065,1740925834787,-500.0,0.00021917,2]
[355123066,1740925834796,-500.0,0.00021917,2]
[355123067,1740925834806,-500.0,0.00021917,2]
[355123068,1740925834816,-500.0,0.00021917,2]
[355123069,1740925834826,-581.05,0.00021917,2]
[355123070,1740925834837,-500.0,0.00021917,2]
[355123071,1740925834848,-500.0,0.00021917,2]
[355123072,1740925834859,-500.0,0.00021917,2]
[355123073,1740925834869,-3540.32,0.00021917,2]
[355123074,1740925834880,-500.0,0.00021917,2]
[355123075,1740925834890,-500.0,0.00021917,2]
[355123076,1740925834900,-2517.07,0.00021917,2]
[355123077,1740925834912,-1110.58,0.00021917,2]
[355123078,1740925834922,-191.389314,0.00021917,2]
[355123079,1740925834933,-191.389314,0.00021917,2]
[355123080,1740925834943,-191.389314,0.00021917,2]
[355123081,1740925834953,-191.389314,0.00021917,2]
[355123082,1740925834963,-191.389314,0.00021917,2]
[355123083,1740925834974,-191.389314,0.00021917,2]
[355123084,1740925834984,-191.389314,0.00021917,2]
[355123085,1740925834993,-191.389314,0.00021917,2]
[355123086,1740925835003,-191.389314,0.00021917,2]
[355123087,1740925835014,-191.389314,0.00021917,2]
[355123088,1740925835024,-500.0,0.00021917,2]
[355123089,1740925835034,-203.50146932,0.00021917,2]
[355123107,1740925839027,-500.0,0.00020656,2]
[355123108,1740925839037,-500.0,0.00020656,2]
[355123109,1740925839047,-366.66,0.00020656,2]
[355123110,1740925839059,-133.34,0.00020656,2]
[355123111,1740925839070,-235.32320788,0.00020656,2]
[355123112,1740925839486,-264.67679212,0.00020656,2]
[355123113,1740925839496,-500.0,0.00020656,2]
[355123114,1740925839506,-500.0,0.00020656,2]
[355123115,1740925839516,-500.0,0.00020656,2]
[355123116,1740925839526,-469.0002886,0.00020656,2]
[355123117,1740925839538,-30.9997114,0.00020656,2]
[355123118,1740925839548,-500.0,0.00020656,2]
[355123119,1740925839558,-250.27321905,0.00020656,2]
[355123123,1740925839569,-249.72678095,0.00020656,2]
[355123125,1740925839579,-353.50814731,0.00020656,2]
[355123127,1740925839589,-173.47161914,0.00020656,2]
[355123129,1740925839600,-326.52838086,0.00020656,2]
[355123130,1740925839610,-397.0,0.00021845,2]
[355123131,1740925839620,-151.0,0.00021916,2]
[355123132,1740925839631,-321.23514644,0.00021917,2]
[355123133,1740925839647,-1487.6,0.00021917,2]
[355123134,1740925839656,-500.0,0.00021917,2]
[355123135,1740925839666,-1297.93,0.00021917,2]
[355123136,1740925839675,-500.0,0.00021917,2]
[355123137,1740925839687,-771.45,0.00021917,2]
[355123138,1740925839696,-500.0,0.00021917,2]
[355123139,1740925839705,-45.46202004,0.00021917,2]
[355123142,1740925840289,-489.44535842,0.00021917,2]
[355123143,1740925840298,-90.73635355,0.00021917,2]
[355123144,1740925840311,-409.26364645,0.00021917,2]
[355123145,1740925840320,-500.0,0.00021917,2]
[355123146,1740925840330,-500.0,0.00021917,2]
[355123147,1740925840341,-500.0,0.00021917,2]
[355123148,1740925840351,-500.0,0.00021917,2]
[355123149,1740925840360,-500.0,0.00021917,2]
[355123150,1740925840370,-3165.29851846,0.00021917,2]
[355123165,1740925844042,-400.553504,0.00020992,2]
[355123166,1740925844052,-212.56402534,0.00021917,2]
[355123167,1740925844071,-2195.29999999,0.00021917,2]
[355123168,1740925844164,-495.99999994,0.00021917,2]
[355123176,1740925846112,-4786.22971069,0.00021917,2]
[355123177,1740925846124,-2473.41,0.00021917,2]
[355123189,1740926746113,-181.07792,0.00019326,2]
[355123190,1740926746136,-984.755504,0.00019513,2]
[355123191,1740926746159,-300.0,0.00019722,2]
[355123192,1740926746181,-96.99602551,0.00019723,2]
[355123193,1740926752088,-1352.57018743,0.00019723,2]
[355123194,1740926814106,-300.0,0.00019722,2]
[355123195,1740926814129,-28.06940009,0.00019723,2]
[355123196,1740926825097,-300.0,0.00019722,2]
[355123197,1740926825118,-5624.20314406,0.00019723,2]
[355123198,1740926825149,-237.97065631,0.00019723,2]
[355123199,1740926833119,-2198.58466295,0.00019723,2]
[355123202,1740926838110,-232.99123719,0.00019723,2]
[355123203,1740926850132,-345.75869567,0.00019723,2]
[355123204,1740926851101,-254.3256035,0.00019538,2]
[355123205,1740926851124,-8076.71051299,0.00019723,2]
[355123206,1740926851146,-657.26861804,0.00019817,2]
[355123207,1740926852200,-166.66666666,0.00019717,2]
[355123208,1740926852223,-110.98609236,0.00019817,2]
[355123209,1740926852248,-29.58568734,0.00020292,2]
[355123211,1740926951065,-1141.07150719,0.000189,2]
[355123212,1740926955079,-697.05880358,0.000189,2]
[355123213,1740926955101,-2434.239976,0.00019222,2]
[355123214,1740926955122,-300.0,0.000193,2]
[355123215,1740926955142,-6175.5049156,0.00019301,2]
[355123216,1740926955162,-221.36778415,0.00019721,2]
[355123217,1740926955188,-500.0,0.00019721,2]
[355123218,1740926955211,-500.0,0.00019721,2]
[355123219,1740926955237,-500.0,0.00019721,2]
[355123220,1740926955262,-500.0,0.00019721,2]
[355123221,1740926955288,-500.0,0.00019721,2]
[355123222,1740926955312,-500.0,0.00019721,2]
[355123223,1740926955336,-500.0,0.00019721,2]
[355123224,1740926955360,-500.0,0.00019721,2]
[355123225,1740926955383,-500.0,0.00019721,2]
[355123226,1740926955405,-500.0,0.00019721,2]
[355123227,1740926955430,-500.0,0.00019721,2]
[355123228,1740926955455,-500.0,0.00019721,2]
[355123229,1740926955486,-500.0,0.00019721,2]
[355123230,1740926955510,-500.0,0.00019721,2]
[355123231,1740926955534,-500.0,0.00019721,2]
[355123232,1740926955558,-500.0,0.00019721,2]
[355123233,1740926955582,-500.0,0.00019721,2]
[355123234,1740926955605,-500.0,0.00019721,2]
[355123235,1740926955629,-500.0,0.00019721,2]
[355123236,1740926955653,-500.0,0.00019721,2]
[355123237,1740926955676,-500.0,0.00019721,2]
[355123238,1740926955699,-500.0,0.00019721,2]
[355123239,1740926955724,-500.0,0.00019721,2]
[355123240,1740926955749,-500.0,0.00019721,2]
[355123241,1740926955774,-500.0,0.00019721,2]
[355123242,1740926955798,-500.0,0.00019721,2]
[355123243,1740926955821,-500.0,0.00019721,2]
[355123244,1740926955844,-500.0,0.00019721,2]
[355123245,1740926955869,-500.0,0.00019721,2]
[355123246,1740926955893,-500.0,0.00019721,2]
[355123247,1740926955917,-184.46776722,0.00019721,2]
[355123248,1740926955941,-766.49289931,0.00019721,2]
[355123249,1740926955964,-766.49289931,0.00019721,2]
[355123250,1740926955993,-766.49289931,0.00019721,2]
[355123251,1740926956020,-766.49289931,0.00019721,2]
[355123252,1740926956046,-766.49289931,0.00019721,2]
[355123253,1740926956069,-766.49289931,0.00019721,2]
[355123254,1740926956093,-766.49289931,0.00019721,2]
[355123255,1740926956118,-766.49289931,0.00019721,2]
[355123256,1740926956142,-766.49289931,0.00019721,2]
[355123257,1740926956166,-766.49289931,0.00019721,2]
[355123258,1740926956191,-766.49289931,0.00019721,2]
[355123259,1740926956216,-766.49289931,0.00019721,2]
[355123260,1740926956241,-766.49289931,0.00019721,2]
[355123261,1740926956266,-766.49289931,0.00019721,2]
[355123262,1740926956293,-766.49289931,0.00019721,2]
[355123263,1740926956319,-766.49289931,0.00019721,2]
[355123264,1740926956344,-766.49289931,0.00019721,2]
[355123265,1740926956368,-766.49289931,0.00019721,2]
[355123266,1740926956394,-766.49289931,0.00019721,2]
[355123267,1740926956600,-766.49289931,0.00019721,2]
[355123268,1740926956627,-766.49289931,0.00019721,2]
[355123269,1740926956653,-766.49289931,0.00019721,2]
[355123270,1740926956677,-766.49289931,0.00019721,2]
[355123271,1740926956701,-766.49289931,0.00019721,2]
[355123272,1740926956724,-766.49289931,0.00019721,2]
[355123273,1740926956749,-766.49289931,0.00019721,2]
[355123274,1740926956774,-766.49289931,0.00019721,2]
[355123275,1740926956803,-766.49289931,0.00019721,2]
[355123276,1740926956826,-766.49289931,0.00019721,2]
[355123277,1740926956851,-766.49289931,0.00019721,2]
[355123278,1740926956876,-766.49289931,0.00019721,2]
[355123279,1740926956901,-766.49289931,0.00019721,2]
[355123280,1740926956926,-766.49289931,0.00019721,2]
[355123281,1740926956950,-766.49289931,0.00019721,2]
[355123282,1740926956981,-766.49289931,0.00019721,2]
[355123283,1740926957006,-766.49289931,0.00019721,2]
[355123284,1740926957034,-766.49289931,0.00019721,2]
[355123285,1740926957059,-606.15588279,0.00019721,2]
[355123286,1740926957139,-160.33701652,0.00019721,2]
[355123287,1740926957165,-766.49289931,0.00019721,2]
[355123288,1740926957191,-765.82053712,0.00019721,2]
[355123289,1740926957216,-765.82053712,0.00019721,2]
[355123290,1740926957242,-765.82053712,0.00019721,2]
[355123291,1740926957266,-765.82053712,0.00019721,2]
[355123292,1740926957291,-765.82053712,0.00019721,2]
[355123293,1740926957316,-765.82053712,0.00019721,2]
[355123294,1740926957340,-765.82053712,0.00019721,2]
[355123295,1740926957364,-765.82053712,0.00019721,2]
[355123296,1740926957388,-298.65364534,0.00019721,2]
[355123297,1740926961168,-467.16689178,0.00019721,2]
[355123298,1740926961195,-765.82053712,0.00019721,2]
[355123299,1740926961220,-765.82053712,0.00019721,2]
[355123300,1740926961245,-765.82053712,0.00019721,2]
[355123301,1740926961269,-765.82053712,0.00019721,2]
[355123302,1740926961294,-765.82053712,0.00019721,2]
[355123303,1740926961320,-765.82053712,0.00019721,2]
[355123304,1740926961344,-765.82053712,0.00019721,2]
[355123305,1740926961371,-765.82053712,0.00019721,2]
[355123306,1740926961392,-319564.43551443,0.00019722,2]
[355123307,1740926962078,-13237.8557922,0.00019722,2]
[355123308,1740926962102,-3132.82199739,0.00019799,2]
[355123309,1740926962123,-17191.04929533,0.00019899,2]
[355123310,1740926962150,-7708.95070467,0.00019899,2]
[355123311,1740926966144,-151.49223266,0.00020292,2]
[355123312,1740926968096,-151.0,0.00020554,2]
[355123313,1740926968119,-21400.60635548,0.00020566,2]
[355123314,1740926987263,33.67993624,0.00019721,2]
[355123315,1740926987290,466.32006376,0.00019721,2]
[355123316,1740926987322,378.47696687,0.00019721,2]
[355123317,1740926987407,500.0,0.00019721,2]
[355123318,1740927004586,423.05121655,0.00019773,2]
[355123340,1740927032374,-500.0,0.00020554,2]
[355123341,1740927032384,-550.0,0.00020554,2]
[355123342,1740927032395,-300.0,0.00020565,2]
[355123343,1740927032404,-15849.3219197,0.00020566,2]
[355123344,1740927032417,-36590.41442418,0.00020566,2]
[355123358,1740927038145,-884.27534826,0.00020566,2]
[355123359,1740927038161,-7535.35267844,0.00020566,2]
[355123360,1740927038293,-31681.00981207,0.00020566,2]
[355123396,1740927043459,-36.45215557,0.00020566,2]
[355123397,1740927043474,-283.97821416,0.00020566,2]
[355123415,1740927046354,-998.70052606,0.00020566,2]
[355123417,1740927062031,500.0,0.00019721,2]
[355123418,1740927062065,500.0,0.00019721,2]
[355123419,1740927062091,500.0,0.00019721,2]
[355123420,1740927062122,500.0,0.00019721,2]
[355123421,1740927062149,500.0,0.00019721,2]
[355123422,1740927062176,189.0674738,0.00019721,2]
[355123423,1740927062218,500.0,0.00019721,2]
[355123424,1740927062256,500.0,0.00019721,2]
[355123425,1740927062288,500.0,0.00019721,2]
[355123426,1740927062324,500.0,0.00019721,2]
[355123427,1740927062361,500.0,0.00019721,2]
[355123428,1740927062390,238.85692995,0.00019721,2]
[355123429,1740927062420,500.0,0.00019721,2]
[355123430,1740927062456,458.28364189,0.00019721,2]
[355123431,1740927117711,-201.30279514,0.00019721,2]
[355123432,1740927117751,-500.0,0.00019721,2]
[355123433,1740927117790,-500.0,0.00019721,2]
[355123434,1740927118007,-500.0,0.00019721,2]
[355123435,1740927118045,-500.0,0.00019721,2]
[355123436,1740927118085,-500.0,0.00019721,2]
[355123437,1740927118123,-500.0,0.00019721,2]
[355123438,1740927118161,-500.0,0.00019721,2]
[355123439,1740927118200,-500.0,0.00019721,2]
[355123440,1740927118240,-500.0,0.00019721,2]
[355123441,1740927118278,-500.0,0.00019721,2]
[355123442,1740927118316,-500.0,0.00019721,2]
[355123443,1740927118354,-500.0,0.00019721,2]
[355123444,1740927118392,-500.0,0.00019721,2]
[355123445,1740927118431,-500.0,0.00019721,2]
[355123446,1740927118470,-500.0,0.00019721,2]
[355123447,1740927118508,-509.54723275,0.00019721,2]
[355123448,1740927118547,-509.54723275,0.00019721,2]
[355123449,1740927118587,-509.54723275,0.00019721,2]
[355123450,1740927118626,-509.54723275,0.00019721,2]
[355123451,1740927118667,-509.54723275,0.00019721,2]
[355123452,1740927118705,-509.54723275,0.00019721,2]
[355123453,1740927118743,-509.54723275,0.00019721,2]
[355123454,1740927118781,-509.54723275,0.00019721,2]
[355123455,1740927118819,-509.54723275,0.00019721,2]
[355123456,1740927118860,-509.54723275,0.00019721,2]
[355123457,1740927118899,-509.54723275,0.00019721,2]
[355123458,1740927118939,-509.54723275,0.00019721,2]
[355123459,1740927118977,-509.54723275,0.00019721,2]
[355123460,1740927119016,-509.54723275,0.00019721,2]
[355123461,1740927119054,-509.54723275,0.00019721,2]
[355123462,1740927119089,-2741.21924769,0.00020473,2]
[355123463,1740927119125,-300.0,0.00020565,2]
[355123464,1740927119162,-500.0,0.00020565,2]
[355123465,1740927119198,-625.32926339,0.00020565,2]
[355123466,1740927119237,-500.0,0.00020565,2]
[355123467,1740927119276,-500.0,0.00020565,2]
[355123468,1740927119314,-500.0,0.00020565,2]
[355123469,1740927119351,-500.0,0.00020565,2]
[355123470,1740927119389,-500.0,0.00020565,2]
[355123471,1740927119425,-500.0,0.00020565,2]
[355123472,1740927119462,-500.0,0.00020565,2]
[355123473,1740927119500,-500.0,0.00020565,2]
[355123474,1740927119538,-500.0,0.00020565,2]
[355123475,1740927119577,-500.0,0.00020565,2]
[355123476,1740927119614,-477.88040506,0.00020565,2]
[355123477,1740927119628,-22.11959494,0.00020565,2]
[355123478,1740927119638,-179.1832002,0.00020565,2]
[355123479,1740927119650,-320.8167998,0.00020565,2]
[355123480,1740927119661,-179.1832002,0.00020565,2]
[355123481,1740927119672,-320.8167998,0.00020565,2]
[355123482,1740927119681,-179.1832002,0.00020565,2]
[355123483,1740927119697,-320.8167998,0.00020565,2]
[355123484,1740927119707,-179.1832002,0.00020565,2]
[355123485,1740927119719,-320.8167998,0.00020565,2]
[355123486,1740927119728,-179.1832002,0.00020565,2]
[355123487,1740927119740,-320.8167998,0.00020565,2]
[355123488,1740927119749,-179.1832002,0.00020565,2]
[355123489,1740927119776,-320.8167998,0.00020565,2]
[355123490,1740927119785,-179.1832002,0.00020565,2]
[355123491,1740927119797,-320.8167998,0.00020565,2]
[355123492,1740927119806,-179.1832002,0.00020565,2]
[355123493,1740927119818,-320.8167998,0.00020565,2]
[355123494,1740927119828,-179.1832002,0.00020565,2]
[355123495,1740927119839,-320.8167998,0.00020565,2]
[355123496,1740927119849,-179.1832002,0.00020565,2]
[355123497,1740927119860,-320.8167998,0.00020565,2]
[355123498,1740927119871,-179.1832002,0.00020565,2]
[355123499,1740927119883,-320.8167998,0.00020565,2]
[355123500,1740927119892,-179.1832002,0.00020565,2]
[355123501,1740927119904,-320.8167998,0.00020565,2]
[355123502,1740927119914,-179.1832002,0.00020565,2]
[355123503,1740927119930,-320.8167998,0.00020565,2]
[355123504,1740927119939,-179.1832002,0.00020565,2]
[355123505,1740927119951,-320.8167998,0.00020565,2]
[355123506,1740927119961,-179.1832002,0.00020565,2]
[355123507,1740927119972,-275.46988028,0.00020565,2]
[355123508,1740927119981,-224.53011972,0.00020565,2]
[355123509,1740927119993,-275.46988028,0.00020565,2]
[355123510,1740927120002,-234.07735247,0.00020565,2]
[355123511,1740927120014,-265.92264753,0.00020565,2]
[355123512,1740927120024,-243.62458522,0.00020565,2]
[355123513,1740927120037,-256.37541478,0.00020565,2]
[355123514,1740927120046,-253.17181797,0.00020565,2]
[355123515,1740927120062,-246.82818203,0.00020565,2]
[355123516,1740927120072,-262.71905072,0.00020565,2]
[355123517,1740927120086,-320.38750349,0.00020565,2]
[355123518,1740927120095,-189.15972926,0.00020565,2]
[355123519,1740927120107,-393.94682495,0.00020565,2]
[355123520,1740927120118,-115.6004078,0.00020565,2]
[355123521,1740927120130,-467.50614641,0.00020565,2]
[355123522,1740927120139,-42.04108634,0.00020565,2]
[355123523,1740927120151,-509.54723275,0.00020565,2]
[355123524,1740927120175,-31.51823512,0.00020565,2]
[355123525,1740927120185,-478.02899763,0.00020565,2]
[355123526,1740927120198,-105.07755658,0.00020565,2]
[355123527,1740927120207,-404.46967617,0.00020565,2]
[355123528,1740927120223,-178.63687804,0.00020565,2]
[355123529,1740927120233,-330.91035471,0.00020565,2]
[355123530,1740927120246,-252.1961995,0.00020565,2]
[355123531,1740927120255,-257.35103325,0.00020565,2]
[355123532,1740927120267,-325.75552096,0.00020565,2]
[355123533,1740927120277,-183.79171179,0.00020565,2]
[355123534,1740927120288,-399.31484242,0.00020565,2]
[355123535,1740927120298,-110.23239033,0.00020565,2]
[355123536,1740927120310,-472.87416388,0.00020565,2]
[355123537,1740927120319,-36.67306887,0.00020565,2]
[355123538,1740927120335,-546.43348534,0.00020565,2]
[355123539,1740927120345,-583.10655421,0.00020565,2]
[355123540,1740927120355,-583.10655421,0.00020565,2]
[355123541,1740927120364,-583.10655421,0.00020565,2]
[355123542,1740927120373,-445.46609972,0.00020565,2]
[355123543,1740927120390,-137.64045449,0.00020565,2]
[355123544,1740927120401,-162.35954551,0.00020566,10]
[355123545,1740927120413,-500.0,0.00020566,10]
[355123546,1740927120424,-625.32926339,0.00020566,10]
[355123547,1740927120436,-500.0,0.00020566,10]
[355123548,1740927120459,-500.0,0.00020566,10]
[355123549,1740927120471,-500.0,0.00020566,10]
[355123550,1740927120490,-500.0,0.00020566,10]
[355123551,1740927120502,-500.0,0.00020566,10]
[355123552,1740927120513,-500.0,0.00020566,10]
[355123553,1740927120526,-352.3111911,0.00020566,10]
[355123554,1740927120536,-147.6888089,0.00020566,2]
[355123555,1740927120547,-500.0,0.00020566,2]
[355123556,1740927120559,-500.0,0.00020566,2]
[355123557,1740927120571,-500.0,0.00020566,2]
[355123558,1740927120587,-500.0,0.00020566,2]
[355123559,1740927192839,-300.0,0.00020564,2]
[355123560,1740927192877,-3146.64326318,0.00020565,2]
[355123561,1740927192914,-3146.64326318,0.00020565,2]
[355123562,1740927192952,-3146.64326318,0.00020565,2]
[355123563,1740927192988,-3146.64326318,0.00020565,2]
[355123564,1740927193024,-3146.64326318,0.00020565,2]
[355123565,1740927193060,-3146.64326318,0.00020565,2]
[355123566,1740927193096,-3146.64326318,0.00020565,2]
[355123567,1740927193134,-2200.3510523,0.00020565,2]
[355123568,1740927193152,-300.0,0.00020565,2]
[355123569,1740927193167,-646.29221088,0.00020565,2]
[355123570,1740927193176,-2500.3510523,0.00020565,2]
[355123571,1740927193188,-646.29221088,0.00020565,2]
[355123572,1740927193199,-2500.3510523,0.00020565,2]
[355123573,1740927193214,-646.29221088,0.00020565,2]
[355123574,1740927193225,-2500.3510523,0.00020565,2]
[355123575,1740927193242,-646.29221088,0.00020565,2]
[355123576,1740927193252,-2500.3510523,0.00020565,2]
[355123577,1740927193267,-646.29221088,0.00020565,2]
[355123578,1740927193277,-220.63001629,0.00020565,2]
[355123579,1740927193287,-2279.72103601,0.00020565,2]
[355123580,1740927193302,-866.92222717,0.00020565,2]
[355123581,1740927193311,-2279.72103601,0.00020565,2]
[355123582,1740927193330,-866.92222717,0.00020565,2]
[355123583,1740927193339,-2279.72103601,0.00020565,2]
[355123584,1740927193351,-866.92222717,0.00020565,2]
[355123585,1740927193361,-2279.72103601,0.00020565,2]
[355123602,1740927947134,-1931.24350183,0.000189,2]
[355123603,1740927949091,-294.8402933,0.000189,2]
[355123604,1740927949114,-188.9511928,0.00019905,2]
[355123605,1740927949138,-300.0,0.00019954,2]
[355123606,1740927949162,-342.91714822,0.00019955,2]
[355123608,1740928027103,-300.0,0.00019953,2]
[355123609,1740928027128,-181.88018796,0.00019954,2]
[355123610,1740928027156,-237.79420209,0.00019954,2]
[355123611,1740928036093,-262.20579791,0.00019954,2]
[355123612,1740928036116,-500.0,0.00019954,2]
[355123613,1740928036146,-500.0,0.00019954,2]
[355123614,1740928036169,-148.11162084,0.00019954,2]
[355123615,1740928037227,-351.88837916,0.00019954,2]
[355123616,1740928037255,-44.73804816,0.00019954,2]
[355123618,1740928039093,-455.26195184,0.00019954,2]
[355123619,1740928039116,-500.0,0.00019954,2]
[355123620,1740928039143,-500.0,0.00019954,2]
[355123621,1740928039170,-500.0,0.00019954,2]
[355123622,1740928039196,-441.44659891,0.00019954,2]
[355123623,1740928039223,-500.0,0.00019954,2]
[355123624,1740928039251,-500.0,0.00019954,2]
[355123625,1740928039279,-500.0,0.00019954,2]
[355123626,1740928039306,-500.0,0.00019954,2]
[355123627,1740928039334,-500.0,0.00019954,2]
[355123628,1740928039362,-500.0,0.00019954,2]
[355123629,1740928039389,-500.0,0.00019954,2]
[355123630,1740928039418,-500.0,0.00019954,2]
[355123631,1740928039447,-500.0,0.00019954,2]
[355123632,1740928039476,-500.0,0.00019954,2]
[355123633,1740928039505,-500.0,0.00019954,2]
[355123634,1740928039533,-500.0,0.00019954,2]
[355123635,1740928039560,-500.0,0.00019954,2]
[355123636,1740928039587,-500.0,0.00019954,2]
[355123637,1740928039615,-500.0,0.00019954,2]
[355123638,1740928039643,-500.0,0.00019954,2]
[355123639,1740928039669,-500.0,0.00019954,2]
[355123640,1740928039698,-500.0,0.00019954,2]
[355123641,1740928039727,-500.0,0.00019954,2]
[355123642,1740928039755,-500.0,0.00019954,2]
[355123643,1740928039784,-500.0,0.00019954,2]
[355123644,1740928039812,-500.0,0.00019954,2]
[355123645,1740928039840,-500.0,0.00019954,2]
[355123646,1740928039868,-500.0,0.00019954,2]
[355123647,1740928039896,-500.0,0.00019954,2]
[355123648,1740928039924,-500.0,0.00019954,2]
[355123649,1740928039954,-610.58843751,0.00019954,2]
[355123650,1740928039984,-610.58843751,0.00019954,2]
[355123651,1740928040013,-610.58843751,0.00019954,2]
[355123652,1740928040042,-610.58843751,0.00019954,2]
[355123653,1740928040070,-610.58843751,0.00019954,2]
[355123654,1740928040097,-610.58843751,0.00019954,2]
[355123655,1740928040127,-610.58843751,0.00019954,2]
[355123656,1740928040155,-610.58843751,0.00019954,2]
[355123657,1740928040185,-610.58843751,0.00019954,2]
[355123658,1740928040212,-610.58843751,0.00019954,2]
[355123659,1740928040239,-610.58843751,0.00019954,2]
[355123660,1740928040268,-610.58843751,0.00019954,2]
[355123661,1740928040295,-610.58843751,0.00019954,2]
[355123662,1740928040323,-610.58843751,0.00019954,2]
[355123663,1740928040352,-610.58843751,0.00019954,2]
[355123664,1740928040380,-610.58843751,0.00019954,2]
[355123665,1740928040408,-610.58843751,0.00019954,2]
[355123666,1740928040439,-610.58843751,0.00019954,2]
[355123667,1740928040469,-610.58843751,0.00019954,2]